[Event "Titled Tuesday Blitz August 23 Early 2022"]
[White "Vlachos, Anatole"]
[Black "Pranesh M"]
[WhiteFideId "26093189"]
[BlackFideId "35028600"]
[WhiteElo "2343"]
[BlackElo "1926"]
[Result "1/2-1/2"]
[Round "02"]
[TimeControl "180+1"]
[Date "2022.08.23"]
[WhiteClock "0:00:15"]
[BlackClock "0:01:30"]

1. Nf3 {[%clk 0:03:00]}  Nf6 {[%clk 0:02:59]} 2. g3 {[%clk 0:03:01]}  d5 {[%clk 0:02:58]} 3. Bg2 {[%clk 0:03:01]}  Bf5 {[%clk 0:02:59]} 4. O-O {[%clk 0:03:01]}  h6 {[%clk 0:02:59]} 5. d3 {[%clk 0:03:02]}  c6 {[%clk 0:02:59]} 6. Nbd2 {[%clk 0:03:02]}  Nbd7 {[%clk 0:02:59]} 7. Qe1 {[%clk 0:03:03]}  Bh7 {[%clk 0:02:59]} 8. e4 {[%clk 0:03:04]}  dxe4 {[%clk 0:02:59]} 9. dxe4 {[%clk 0:03:05]}  e5 {[%clk 0:03:00]} 10. Qe2 {[%clk 0:03:04]}  Qc7 {[%clk 0:03:00]} 11. b3 {[%clk 0:02:52]}  a5 {[%clk 0:02:59]} 12. a4 {[%clk 0:02:50]}  Bb4 {[%clk 0:02:55]} 13. Bb2 {[%clk 0:02:48]}  O-O {[%clk 0:02:56]} 14. c3 {[%clk 0:02:42]}  Bc5 {[%clk 0:02:56]} 15. Nh4 {[%clk 0:02:41]}  Rfe8 {[%clk 0:02:54]} 16. Nf5 {[%clk 0:02:39]}  Bxf5 {[%clk 0:02:51]} 17. exf5 {[%clk 0:02:39]}  e4 {[%clk 0:02:52]} 18. Nc4 {[%clk 0:02:29]}  b5 {[%clk 0:02:52]} 19. axb5 {[%clk 0:02:21]}  cxb5 {[%clk 0:02:53]} 20. Ne3 {[%clk 0:02:10]}  a4 {[%clk 0:02:53]} 21. Qxb5 {[%clk 0:01:47]}  a3 {[%clk 0:02:53]} 22. Bc1 {[%clk 0:01:34]}  Reb8 {[%clk 0:02:53]} 23. Qe2 {[%clk 0:01:11]}  Rxb3 {[%clk 0:02:53]} 24. Qc2 {[%clk 0:01:10]}  Rab8 {[%clk 0:02:53]} 25. c4 {[%clk 0:00:52]}  Ne5 {[%clk 0:02:48]} 26. Bxe4 {[%clk 0:00:50]}  Bd4 {[%clk 0:02:45]} 27. Rxa3 {[%clk 0:00:48]}  Rxa3 {[%clk 0:02:43]} 28. Bxa3 {[%clk 0:00:49]}  Bxe3 {[%clk 0:02:42]} 29. fxe3 {[%clk 0:00:49]}  Qxc4 {[%clk 0:02:43]} 30. Bd6 {[%clk 0:00:43]}  Re8 {[%clk 0:02:27]} 31. Bxe5 {[%clk 0:00:40]}  Qxe4 {[%clk 0:02:22]} 32. Qxe4 {[%clk 0:00:39]}  Nxe4 {[%clk 0:02:22]} 33. Bd4 {[%clk 0:00:40]}  Rc8 {[%clk 0:02:16]} 34. Rf4 {[%clk 0:00:38]}  Ng5 {[%clk 0:02:11]} 35. Kg2 {[%clk 0:00:37]}  f6 {[%clk 0:02:07]} 36. h4 {[%clk 0:00:36]}  Nf7 {[%clk 0:02:01]} 37. Rf2 {[%clk 0:00:36]}  Nd6 {[%clk 0:02:01]} 38. g4 {[%clk 0:00:34]}  Ne4 {[%clk 0:02:02]} 39. Ra2 {[%clk 0:00:32]}  h5 {[%clk 0:01:59]} 40. Kf3 {[%clk 0:00:30]}  Nd6 {[%clk 0:01:58]} 41. Ra6 {[%clk 0:00:25]}  hxg4+ {[%clk 0:01:56]} 42. Kxg4 {[%clk 0:00:26]}  Ne4 {[%clk 0:01:50]} 43. Kf4 {[%clk 0:00:26]}  Nf2 {[%clk 0:01:49]} 44. Ra7 {[%clk 0:00:23]}  Re8 {[%clk 0:01:48]} 45. h5 {[%clk 0:00:23]}  Nd3+ {[%clk 0:01:41]} 46. Kf3 {[%clk 0:00:21]}  Ne5+ {[%clk 0:01:41]} 47. Bxe5 {[%clk 0:00:21]}  Rxe5 {[%clk 0:01:42]} 48. e4 {[%clk 0:00:21]}  Rb5 {[%clk 0:01:42]} 49. Ra6 {[%clk 0:00:19]}  Kh7 {[%clk 0:01:42]} 50. Ra2 {[%clk 0:00:18]}  Kh6 {[%clk 0:01:42]} 51. Rg2 {[%clk 0:00:18]}  Rb7 {[%clk 0:01:41]} 52. Kg4 {[%clk 0:00:19]}  Re7 {[%clk 0:01:40]} 53. Kf4 {[%clk 0:00:18]}  Rb7 {[%clk 0:01:39]} 54. Rg6+ {[%clk 0:00:17]}  Kxh5 {[%clk 0:01:39]} 55. Rg2 {[%clk 0:00:18]}  g5+ {[%clk 0:01:37]} 56. fxg6 {[%clk 0:00:19]}  Kh6 {[%clk 0:01:31]} 57. Kf5 {[%clk 0:00:17]}  Kg7 {[%clk 0:01:32]} 58. Rd2 {[%clk 0:00:16]}  Rb5+ {[%clk 0:01:31]} 59. Rd5 {[%clk 0:00:17]}  Rb7 {[%clk 0:01:31]} 60. Rc5 {[%clk 0:00:13]}  Ra7 {[%clk 0:01:31]} 61. Rd5 {[%clk 0:00:14]}  Re7 {[%clk 0:01:30]} 62. Rc5 {[%clk 0:00:13]}  Rd7 {[%clk 0:01:30]} 63. e5 {[%clk 0:00:13]}  fxe5 {[%clk 0:01:30]} 64. Rxe5 {[%clk 0:00:14]}  Ra7 {[%clk 0:01:30]} 65. Kg5 {[%clk 0:00:15]}  Rb7 {[%clk 0:01:30]} 66. Rf5 {[%clk 0:00:15]}  Rc7 {[%clk 0:01:30]} 67. Rf7+ {[%clk 0:00:14]}  Rxf7 {[%clk 0:01:30]} 68. gxf7 {[%clk 0:00:15]}  Kxf7 {[%clk 0:01:30]} 1/2-1/2


[Site "https://www.chess.com"]

[Event "Titled Tuesday Blitz August 23 Early 2022"]
[White "Bluebaum, Matthias"]
[Black "Skliarov, Viktor"]
[WhiteFideId "24651516"]
[BlackFideId "14106736"]
[WhiteElo "2603"]
[BlackElo "2257"]
[Result "1-0"]
[Round "03"]
[TimeControl "180+1"]
[Date "2022.08.23"]
[WhiteClock "0:00:40"]
[BlackClock "0:00:04"]

1. d4 {[%clk 0:03:00]}  Nf6 {[%clk 0:02:59]} 2. c4 {[%clk 0:03:01]}  e6 {[%clk 0:03:00]} 3. Nc3 {[%clk 0:03:02]}  Bb4 {[%clk 0:03:00]} 4. e3 {[%clk 0:03:02]}  b6 {[%clk 0:03:01]} 5. Bd2 {[%clk 0:03:01]}  Bb7 {[%clk 0:03:00]} 6. Nf3 {[%clk 0:03:02]}  O-O {[%clk 0:02:59]} 7. Bd3 {[%clk 0:03:02]}  Bxc3 {[%clk 0:02:59]} 8. Bxc3 {[%clk 0:03:02]}  Ne4 {[%clk 0:03:00]} 9. Bxe4 {[%clk 0:03:02]}  Bxe4 {[%clk 0:02:59]} 10. d5 {[%clk 0:03:03]}  Bxf3 {[%clk 0:02:10]} 11. gxf3 {[%clk 0:03:00]}  d6 {[%clk 0:01:44]} 12. f4 {[%clk 0:02:56]}  Nd7 {[%clk 0:01:32]} 13. Rg1 {[%clk 0:02:29]}  e5 {[%clk 0:01:18]} 14. fxe5 {[%clk 0:02:14]}  Nxe5 {[%clk 0:01:17]} 15. f4 {[%clk 0:01:30]}  Qh4+ {[%clk 0:01:15]} 16. Kf1 {[%clk 0:01:30]}  Qh3+ {[%clk 0:01:04]} 17. Rg2 {[%clk 0:01:30]}  Ng6 {[%clk 0:01:00]} 18. Qg4 {[%clk 0:01:28]}  Qxg4 {[%clk 0:00:57]} 19. Rxg4 {[%clk 0:01:29]}  f5 {[%clk 0:00:57]} 20. Rg3 {[%clk 0:01:27]}  Kf7 {[%clk 0:00:44]} 21. Ke2 {[%clk 0:01:25]}  Rae8 {[%clk 0:00:41]} 22. Kd3 {[%clk 0:01:25]}  Rg8 {[%clk 0:00:32]} 23. Rag1 {[%clk 0:01:25]}  Re7 {[%clk 0:00:31]} 24. h4 {[%clk 0:01:23]}  Nxh4 {[%clk 0:00:25]} 25. Rh1 {[%clk 0:01:11]}  Ng6 {[%clk 0:00:05]} 26. Rxh7 {[%clk 0:01:11]}  Nf8 {[%clk 0:00:06]} 27. Rgxg7+ {[%clk 0:01:08]}  Rxg7 {[%clk 0:00:06]} 28. Rxg7+ {[%clk 0:01:09]}  Ke8 {[%clk 0:00:07]} 29. Rg5 {[%clk 0:01:10]}  Rf7 {[%clk 0:00:07]} 30. Rh5 {[%clk 0:00:47]}  a5 {[%clk 0:00:07]} 31. b3 {[%clk 0:00:46]}  Nd7 {[%clk 0:00:06]} 32. Bd4 {[%clk 0:00:46]}  Nc5+ {[%clk 0:00:06]} 33. Ke2 {[%clk 0:00:47]}  Ne4 {[%clk 0:00:06]} 34. Kf3 {[%clk 0:00:44]}  Kd7 {[%clk 0:00:06]} 35. Rh8 {[%clk 0:00:40]}  Nd2+ {[%clk 0:00:06]} 36. Kg3 {[%clk 0:00:40]}  Ne4+ {[%clk 0:00:06]} 37. Kh4 {[%clk 0:00:41]}  Ke7 {[%clk 0:00:04]} 38. Kh5 {[%clk 0:00:41]}  Kd7 {[%clk 0:00:03]} 39. Kg6 {[%clk 0:00:42]}  Ke7 {[%clk 0:00:03]} 40. Rc8 {[%clk 0:00:40]}  Kd7 {[%clk 0:00:03]} 41. Rxc7+ {[%clk 0:00:39]}  Kxc7 {[%clk 0:00:04]} 42. Kxf7 {[%clk 0:00:40]} 1-0


[Site "https://www.chess.com"]

[Event "Titled Tuesday Blitz August 23 Early 2022"]
[White "Chigaev, Maksim"]
[Black "Munkhgal, Gombosuren"]
[WhiteFideId "4108116"]
[BlackFideId "4901266"]
[WhiteElo "2487"]
[BlackElo "2576"]
[Result "1-0"]
[Round "03"]
[TimeControl "180+1"]
[Date "2022.08.23"]
[WhiteClock "0:00:29"]
[BlackClock "0:00:05"]

1. e4 {[%clk 0:03:00]}  e6 {[%clk 0:02:58]} 2. d4 {[%clk 0:03:00]}  d5 {[%clk 0:02:59]} 3. Nd2 {[%clk 0:03:01]}  c5 {[%clk 0:02:58]} 4. Ngf3 {[%clk 0:02:57]}  cxd4 {[%clk 0:02:57]} 5. Nxd4 {[%clk 0:02:58]}  Nc6 {[%clk 0:02:58]} 6. Bb5 {[%clk 0:02:57]}  Bd7 {[%clk 0:02:59]} 7. Nxc6 {[%clk 0:02:57]}  Bxc6 {[%clk 0:02:59]} 8. Bd3 {[%clk 0:02:58]}  Nf6 {[%clk 0:02:58]} 9. Qe2 {[%clk 0:02:56]}  dxe4 {[%clk 0:02:57]} 10. Nxe4 {[%clk 0:02:56]}  Nxe4 {[%clk 0:02:58]} 11. Bxe4 {[%clk 0:02:57]}  Qc7 {[%clk 0:02:41]} 12. Bd2 {[%clk 0:02:35]}  Be7 {[%clk 0:02:10]} 13. O-O-O {[%clk 0:02:34]}  Bxe4 {[%clk 0:01:31]} 14. Qxe4 {[%clk 0:02:33]}  O-O-O {[%clk 0:01:19]} 15. Bc3 {[%clk 0:02:19]}  Bf6 {[%clk 0:01:18]} 16. Bxf6 {[%clk 0:02:17]}  gxf6 {[%clk 0:01:18]} 17. Kb1 {[%clk 0:02:16]}  f5 {[%clk 0:01:16]} 18. Qe3 {[%clk 0:02:15]}  Kb8 {[%clk 0:01:13]} 19. g3 {[%clk 0:02:15]}  a6 {[%clk 0:01:03]} 20. a3 {[%clk 0:02:12]}  Rxd1+ {[%clk 0:00:54]} 21. Rxd1 {[%clk 0:02:11]}  Rd8 {[%clk 0:00:55]} 22. Rd4 {[%clk 0:02:02]}  Rxd4 {[%clk 0:00:31]} 23. Qxd4 {[%clk 0:02:00]}  Qc8 {[%clk 0:00:29]} 24. h4 {[%clk 0:01:45]}  Qg8 {[%clk 0:00:29]} 25. Kc1 {[%clk 0:01:28]}  Qg6 {[%clk 0:00:27]} 26. Kd2 {[%clk 0:01:25]}  Qh6+ {[%clk 0:00:27]} 27. Qf4+ {[%clk 0:01:08]}  Qxf4+ {[%clk 0:00:27]} 28. gxf4 {[%clk 0:01:09]}  Kc7 {[%clk 0:00:28]} 29. c4 {[%clk 0:01:03]}  f6 {[%clk 0:00:27]} 30. Kd3 {[%clk 0:00:52]}  e5 {[%clk 0:00:26]} 31. c5 {[%clk 0:00:41]}  Kc6 {[%clk 0:00:19]} 32. Kc4 {[%clk 0:00:41]}  h5 {[%clk 0:00:10]} 33. b4 {[%clk 0:00:37]}  Kd7 {[%clk 0:00:05]} 34. fxe5 {[%clk 0:00:32]}  fxe5 {[%clk 0:00:05]} 35. Kd5 {[%clk 0:00:33]}  e4 {[%clk 0:00:05]} 36. Ke5 {[%clk 0:00:33]}  Kc6 {[%clk 0:00:01]} 37. Kxf5 {[%clk 0:00:33]}  Kd5 {[%clk 0:00:02]} 38. Kg5 {[%clk 0:00:28]}  Ke5 {[%clk 0:00:03]} 39. Kxh5 {[%clk 0:00:28]}  Kf4 {[%clk 0:00:04]} 40. Kg6 {[%clk 0:00:28]}  Kf3 {[%clk 0:00:04]} 41. Kf5 {[%clk 0:00:29]}  Kxf2 {[%clk 0:00:05]} 42. Kxe4 {[%clk 0:00:29]} 1-0


[Site "https://www.chess.com"]

[Event "Titled Tuesday Blitz August 23 Early 2022"]
[White "Csonka, Balazs"]
[Black "Le, Tuan Minh"]
[WhiteFideId "742910"]
[BlackFideId "12401153"]
[WhiteElo "2404"]
[BlackElo "2530"]
[Result "0-1"]
[Round "03"]
[TimeControl "180+1"]
[Date "2022.08.23"]
[WhiteClock "0:00:01"]
[BlackClock "0:00:09"]

1. d4 {[%clk 0:03:00]}  d5 {[%clk 0:03:00]} 2. c4 {[%clk 0:02:59]}  c6 {[%clk 0:03:00]} 3. Nc3 {[%clk 0:02:54]}  Nf6 {[%clk 0:03:00]} 4. Nf3 {[%clk 0:02:53]}  a6 {[%clk 0:03:00]} 5. c5 {[%clk 0:02:45]}  Nbd7 {[%clk 0:02:59]} 6. Bf4 {[%clk 0:02:46]}  Nh5 {[%clk 0:02:59]} 7. Bd2 {[%clk 0:02:46]}  g6 {[%clk 0:03:00]} 8. e4 {[%clk 0:02:41]}  dxe4 {[%clk 0:03:01]} 9. Nxe4 {[%clk 0:02:41]}  Ndf6 {[%clk 0:03:01]} 10. Nxf6+ {[%clk 0:02:39]}  exf6 {[%clk 0:03:02]} 11. Bc4 {[%clk 0:02:17]}  Qe7+ {[%clk 0:03:01]} 12. Be3 {[%clk 0:02:08]}  Bh6 {[%clk 0:02:58]} 13. Qd2 {[%clk 0:01:38]}  Ng7 {[%clk 0:02:36]} 14. O-O {[%clk 0:01:19]}  Bxe3 {[%clk 0:02:34]} 15. fxe3 {[%clk 0:01:18]}  Be6 {[%clk 0:02:25]} 16. b3 {[%clk 0:01:01]}  O-O {[%clk 0:02:24]} 17. Rae1 {[%clk 0:00:54]}  f5 {[%clk 0:02:22]} 18. Ne5 {[%clk 0:00:47]}  Rad8 {[%clk 0:02:17]} 19. Qf2 {[%clk 0:00:41]}  f6 {[%clk 0:01:23]} 20. Nd3 {[%clk 0:00:34]}  Rfe8 {[%clk 0:01:23]} 21. Nf4 {[%clk 0:00:29]}  Bf7 {[%clk 0:01:24]} 22. h4 {[%clk 0:00:24]}  g5 {[%clk 0:00:44]} 23. hxg5 {[%clk 0:00:20]}  fxg5 {[%clk 0:00:45]} 24. Nd3 {[%clk 0:00:20]}  Bd5 {[%clk 0:00:29]} 25. Ne5 {[%clk 0:00:18]}  Qe6 {[%clk 0:00:30]} 26. e4 {[%clk 0:00:10]}  Bxc4 {[%clk 0:00:30]} 27. bxc4 {[%clk 0:00:07]}  Rf8 {[%clk 0:00:26]} 28. Qe3 {[%clk 0:00:04]}  f4 {[%clk 0:00:26]} 29. Qc3 {[%clk 0:00:04]}  Nh5 {[%clk 0:00:21]} 30. d5 {[%clk 0:00:04]}  Qf6 {[%clk 0:00:21]} 31. Rc1 {[%clk 0:00:04]}  Ng3 {[%clk 0:00:21]} 32. Rfe1 {[%clk 0:00:04]}  Rfe8 {[%clk 0:00:19]} 33. Ng4 {[%clk 0:00:03]}  Qxc3 {[%clk 0:00:19]} 34. Rxc3 {[%clk 0:00:04]}  Kg7 {[%clk 0:00:20]} 35. Nf2 {[%clk 0:00:04]}  cxd5 {[%clk 0:00:19]} 36. cxd5 {[%clk 0:00:05]}  Rxd5 {[%clk 0:00:19]} 37. Rb1 {[%clk 0:00:05]}  Rd7 {[%clk 0:00:19]} 38. c6 {[%clk 0:00:05]}  bxc6 {[%clk 0:00:14]} 39. Rxc6 {[%clk 0:00:06]}  h5 {[%clk 0:00:14]} 40. Rxa6 {[%clk 0:00:06]}  g4 {[%clk 0:00:14]} 41. Rbb6 {[%clk 0:00:06]}  Kg8 {[%clk 0:00:08]} 42. Rg6+ {[%clk 0:00:06]}  Rg7 {[%clk 0:00:09]} 43. Rxg7+ {[%clk 0:00:06]}  Kxg7 {[%clk 0:00:10]} 44. Ra7+ {[%clk 0:00:05]}  Kg6 {[%clk 0:00:10]} 45. Ra6+ {[%clk 0:00:05]}  Kg5 {[%clk 0:00:10]} 46. Ra5+ {[%clk 0:00:05]}  Kh4 {[%clk 0:00:11]} 47. Rc5 {[%clk 0:00:05]}  Rb8 {[%clk 0:00:09]} 48. Nd3 {[%clk 0:00:02]}  Rb1+ {[%clk 0:00:09]} 49. Nc1 {[%clk 0:00:02]}  Ne2+ {[%clk 0:00:08]} 50. Kf2 {[%clk 0:00:03]}  Nxc1 {[%clk 0:00:09]} 51. Rc3 {[%clk 0:00:02]}  Rb2+ {[%clk 0:00:07]} 52. Kf1 {[%clk 0:00:01]}  Ne2 {[%clk 0:00:08]} 53. Rb3 {[%clk 0:00:02]}  Ng3+ {[%clk 0:00:08]} 54. Ke1 {[%clk 0:00:01]}  Rxa2 {[%clk 0:00:08]} 55. e5 {[%clk 0:00:01]}  Re2+ {[%clk 0:00:08]} 56. Kd1 {[%clk 0:00:01]}  Rxe5 {[%clk 0:00:09]} 57. Rb4 {[%clk 0:00:01]}  Re4 {[%clk 0:00:08]} 58. Rb5 {[%clk 0:00:01]}  f3 {[%clk 0:00:08]} 59. gxf3 {[%clk 0:00:01]}  gxf3 {[%clk 0:00:09]} 60. Rg5 {[%clk 0:00:01]}  f2 {[%clk 0:00:09]} 0-1


[Site "https://www.chess.com"]

[Event "Titled Tuesday Blitz August 23 Early 2022"]
[White "Ezat, Mohamed"]
[Black "Koustav, Chatterjee"]
[WhiteFideId "10600906"]
[BlackFideId "25073060"]
[WhiteElo "2386"]
[BlackElo "2242"]
[Result "1-0"]
[Round "03"]
[TimeControl "180+1"]
[Date "2022.08.23"]
[WhiteClock "0:00:51"]
[BlackClock "0:00:12"]

1. d4 {[%clk 0:03:00]}  Nf6 {[%clk 0:03:00]} 2. c4 {[%clk 0:03:01]}  e6 {[%clk 0:02:58]} 3. Nf3 {[%clk 0:03:01]}  d5 {[%clk 0:02:59]} 4. Nc3 {[%clk 0:03:00]}  Bb4 {[%clk 0:02:58]} 5. Qa4+ {[%clk 0:02:56]}  Nc6 {[%clk 0:02:58]} 6. Ne5 {[%clk 0:02:57]}  Bd7 {[%clk 0:02:49]} 7. Nxd7 {[%clk 0:02:53]}  Nxd7 {[%clk 0:02:43]} 8. e3 {[%clk 0:02:49]}  Nb6 {[%clk 0:02:30]} 9. Qb3 {[%clk 0:02:46]}  dxc4 {[%clk 0:02:29]} 10. Bxc4 {[%clk 0:02:45]}  Nxc4 {[%clk 0:02:28]} 11. Qxc4 {[%clk 0:02:45]}  Qd5 {[%clk 0:02:28]} 12. Qxd5 {[%clk 0:02:44]}  Bxc3+ {[%clk 0:02:28]} 13. bxc3 {[%clk 0:02:43]}  exd5 {[%clk 0:02:29]} 14. Rb1 {[%clk 0:02:36]}  O-O-O {[%clk 0:02:11]} 15. Ke2 {[%clk 0:02:34]}  Rhe8 {[%clk 0:02:10]} 16. Kd3 {[%clk 0:02:34]}  Na5 {[%clk 0:02:03]} 17. f3 {[%clk 0:02:33]}  f5 {[%clk 0:02:03]} 18. h3 {[%clk 0:02:33]}  Nc4 {[%clk 0:01:21]} 19. g4 {[%clk 0:02:30]}  g6 {[%clk 0:01:20]} 20. gxf5 {[%clk 0:02:19]}  gxf5 {[%clk 0:01:21]} 21. Rg1 {[%clk 0:02:17]}  Re7 {[%clk 0:01:10]} 22. Rg5 {[%clk 0:02:12]}  Rf8 {[%clk 0:01:09]} 23. Bd2 {[%clk 0:02:08]}  c6 {[%clk 0:00:37]} 24. Rbg1 {[%clk 0:02:04]}  Kd7 {[%clk 0:00:34]} 25. Rg7 {[%clk 0:01:56]}  Rff7 {[%clk 0:00:34]} 26. Rxf7 {[%clk 0:01:52]}  Rxf7 {[%clk 0:00:34]} 27. Rg5 {[%clk 0:01:46]}  Ke6 {[%clk 0:00:34]} 28. Rh5 {[%clk 0:01:46]}  b5 {[%clk 0:00:33]} 29. Bc1 {[%clk 0:01:42]}  a5 {[%clk 0:00:31]} 30. Rh6+ {[%clk 0:01:40]}  Kd7 {[%clk 0:00:31]} 31. Rh5 {[%clk 0:01:36]}  a4 {[%clk 0:00:31]} 32. Rg5 {[%clk 0:01:33]}  Ke6 {[%clk 0:00:31]} 33. Rg8 {[%clk 0:01:33]}  Kd7 {[%clk 0:00:27]} 34. h4 {[%clk 0:01:31]}  Kd6 {[%clk 0:00:25]} 35. h5 {[%clk 0:01:29]}  Rf6 {[%clk 0:00:24]} 36. Rg5 {[%clk 0:01:20]}  Re6 {[%clk 0:00:24]} 37. Rxf5 {[%clk 0:01:16]}  Ke7 {[%clk 0:00:24]} 38. e4 {[%clk 0:01:14]}  Ke8 {[%clk 0:00:19]} 39. e5 {[%clk 0:01:12]}  Re7 {[%clk 0:00:17]} 40. Rg5 {[%clk 0:01:04]}  Rf7 {[%clk 0:00:17]} 41. f4 {[%clk 0:01:04]}  h6 {[%clk 0:00:13]} 42. Rg6 {[%clk 0:01:02]}  Rf5 {[%clk 0:00:14]} 43. Rxh6 {[%clk 0:01:02]}  Kd7 {[%clk 0:00:14]} 44. Rh8 {[%clk 0:00:59]}  Ke6 {[%clk 0:00:14]} 45. Ke2 {[%clk 0:00:55]}  Rf7 {[%clk 0:00:14]} 46. Kf3 {[%clk 0:00:54]}  Rg7 {[%clk 0:00:13]} 47. Rh6+ {[%clk 0:00:52]}  Kd7 {[%clk 0:00:14]} 48. Rg6 {[%clk 0:00:52]}  Rh7 {[%clk 0:00:12]} 49. h6 {[%clk 0:00:52]}  Ke7 {[%clk 0:00:12]} 50. f5 {[%clk 0:00:51]} 1-0


[Site "https://www.chess.com"]

[Event "Titled Tuesday Blitz August 23 Early 2022"]
[White "Gholami Orimi, Mahdi"]
[Black "Korchmar, Vasiliy"]
[WhiteFideId "12558486"]
[BlackFideId "24131750"]
[WhiteElo "2354"]
[BlackElo "2370"]
[Result "1-0"]
[Round "03"]
[TimeControl "180+1"]
[Date "2022.08.23"]
[WhiteClock "0:01:01"]
[BlackClock "0:00:01"]

1. d4 {[%clk 0:03:00]}  d5 {[%clk 0:02:59]} 2. c4 {[%clk 0:03:00]}  c6 {[%clk 0:02:59]} 3. Nf3 {[%clk 0:02:59]}  Nf6 {[%clk 0:02:59]} 4. g3 {[%clk 0:02:59]}  g6 {[%clk 0:02:53]} 5. Bg2 {[%clk 0:02:58]}  Bg7 {[%clk 0:02:54]} 6. O-O {[%clk 0:02:59]}  O-O {[%clk 0:02:54]} 7. Ne5 {[%clk 0:02:58]}  Ng4 {[%clk 0:02:50]} 8. cxd5 {[%clk 0:02:54]}  cxd5 {[%clk 0:02:48]} 9. Bf4 {[%clk 0:02:45]}  Nxe5 {[%clk 0:02:44]} 10. Bxe5 {[%clk 0:02:38]}  Bxe5 {[%clk 0:02:34]} 11. dxe5 {[%clk 0:02:39]}  Nc6 {[%clk 0:02:35]} 12. Bxd5 {[%clk 0:02:36]}  Bh3 {[%clk 0:02:21]} 13. Re1 {[%clk 0:02:33]}  Nxe5 {[%clk 0:02:09]} 14. Qb3 {[%clk 0:02:32]}  e6 {[%clk 0:01:47]} 15. Bh1 {[%clk 0:02:28]}  Qe7 {[%clk 0:00:52]} 16. Nc3 {[%clk 0:02:27]}  Rfd8 {[%clk 0:00:51]} 17. Ne4 {[%clk 0:02:24]}  Rac8 {[%clk 0:00:35]} 18. Rad1 {[%clk 0:02:23]}  Rxd1 {[%clk 0:00:33]} 19. Rxd1 {[%clk 0:02:24]}  Rd8 {[%clk 0:00:33]} 20. Re1 {[%clk 0:02:17]}  Bf5 {[%clk 0:00:29]} 21. Qc3 {[%clk 0:02:10]}  Bxe4 {[%clk 0:00:27]} 22. Bxe4 {[%clk 0:02:11]}  Nc6 {[%clk 0:00:11]} 23. Bxc6 {[%clk 0:01:57]}  Rc8 {[%clk 0:00:11]} 24. Qa5 {[%clk 0:01:45]}  Rxc6 {[%clk 0:00:11]} 25. Qxa7 {[%clk 0:01:44]}  Rc2 {[%clk 0:00:11]} 26. Qd4 {[%clk 0:01:41]}  e5 {[%clk 0:00:07]} 27. Qb6 {[%clk 0:01:41]}  Kg7 {[%clk 0:00:03]} 28. a4 {[%clk 0:01:35]}  h5 {[%clk 0:00:03]} 29. h4 {[%clk 0:01:29]}  Qd7 {[%clk 0:00:01]} 30. Qe3 {[%clk 0:01:16]}  Qd4 {[%clk 0:00:01]} 31. Qxd4 {[%clk 0:01:00]}  exd4 {[%clk 0:00:02]} 32. b3 {[%clk 0:01:00]}  Rb2 {[%clk 0:00:01]} 33. Rd1 {[%clk 0:01:01]} 1-0


[Site "https://www.chess.com"]

[Event "Titled Tuesday Blitz August 23 Early 2022"]
[White "Goryachkina, Aleksandra"]
[Black "Grandelius, Nils"]
[WhiteFideId "4147103"]
[BlackFideId "1710400"]
[WhiteElo "2426"]
[BlackElo "2617"]
[Result "1-0"]
[Round "03"]
[TimeControl "180+1"]
[Date "2022.08.23"]
[WhiteClock "0:00:21"]
[BlackClock "0:00:08"]

1. e4 {[%clk 0:02:59]}  c5 {[%clk 0:02:59]} 2. Nf3 {[%clk 0:02:59]}  d6 {[%clk 0:03:00]} 3. Bb5+ {[%clk 0:02:57]}  Nc6 {[%clk 0:03:00]} 4. O-O {[%clk 0:02:55]}  Bd7 {[%clk 0:03:00]} 5. c3 {[%clk 0:02:54]}  a6 {[%clk 0:02:49]} 6. Bxc6 {[%clk 0:02:33]}  Bxc6 {[%clk 0:02:50]} 7. Re1 {[%clk 0:02:34]}  Nf6 {[%clk 0:02:45]} 8. e5 {[%clk 0:02:30]}  Nd5 {[%clk 0:02:27]} 9. d4 {[%clk 0:02:23]}  e6 {[%clk 0:02:11]} 10. c4 {[%clk 0:02:18]}  Nb6 {[%clk 0:02:02]} 11. d5 {[%clk 0:02:15]}  Bd7 {[%clk 0:02:02]} 12. exd6 {[%clk 0:02:03]}  Bxd6 {[%clk 0:01:56]} 13. Ng5 {[%clk 0:01:42]}  O-O {[%clk 0:01:21]} 14. Qh5 {[%clk 0:01:29]}  h6 {[%clk 0:01:20]} 15. dxe6 {[%clk 0:01:26]}  Bxe6 {[%clk 0:01:06]} 16. Nxe6 {[%clk 0:01:12]}  fxe6 {[%clk 0:01:07]} 17. Nc3 {[%clk 0:01:11]}  Qe8 {[%clk 0:00:33]} 18. Qg4 {[%clk 0:01:05]}  Rf6 {[%clk 0:00:31]} 19. Be3 {[%clk 0:01:01]}  Rg6 {[%clk 0:00:25]} 20. Qe4 {[%clk 0:01:01]}  Qf7 {[%clk 0:00:22]} 21. Rad1 {[%clk 0:01:00]}  Bf8 {[%clk 0:00:21]} 22. Rd2 {[%clk 0:00:32]}  Re8 {[%clk 0:00:21]} 23. Red1 {[%clk 0:00:31]}  Rf6 {[%clk 0:00:17]} 24. f3 {[%clk 0:00:26]}  Qg6 {[%clk 0:00:12]} 25. Bf2 {[%clk 0:00:25]}  Qxe4 {[%clk 0:00:10]} 26. Nxe4 {[%clk 0:00:25]}  Rf7 {[%clk 0:00:11]} 27. b3 {[%clk 0:00:26]}  Be7 {[%clk 0:00:10]} 28. Nxc5 {[%clk 0:00:23]}  Bxc5 {[%clk 0:00:08]} 29. Bxc5 {[%clk 0:00:23]}  Nc8 {[%clk 0:00:08]} 30. Rd8 {[%clk 0:00:21]} 1-0


[Site "https://www.chess.com"]